fUSD/lending_fUSD_20240527
["ID","MTS","AMOUNT","RATE_DAILY","PERIOD"]
[328008971,1716772242684,-716.48,0.00027397,4]
[328008972,1716772242693,-500.0,0.00027397,4]
[328008973,1716772242702,-500.0,0.00027397,4]
[328008974,1716772242711,-500.0,0.00027397,4]
[328008975,1716772242720,-500.0,0.00027397,4]
[328008976,1716772242729,-500.0,0.00027397,4]
[328008977,1716772242739,-500.0,0.00027397,4]
[328008978,1716772242748,-500.0,0.00027397,4]
[328008979,1716772242757,-1294.62,0.00027397,4]
[328008980,1716772242766,-500.0,0.00027397,4]
[328008981,1716772242775,-1392.4,0.00027397,4]
[328008982,1716772242784,-500.0,0.00027397,4]
[328008983,1716772242794,-889.16,0.00027397,4]
[328008984,1716772242803,-500.0,0.00027397,4]
[328008985,1716772242811,-500.0,0.00027397,4]
[328008986,1716772242820,-500.0,0.00027397,4]
[328008987,1716772242830,-500.0,0.00027397,4]
[328008988,1716772242839,-500.0,0.00027397,4]
[328008989,1716772242848,-500.0,0.00027397,4]
[328008990,1716772242857,-2709.81,0.00027397,4]
[328008991,1716772242866,-500.0,0.00027397,4]
[328008992,1716772242875,-500.0,0.00027397,4]
[328008993,1716772242885,-500.0,0.00027397,4]
[328008994,1716772242894,-500.0,0.00027397,4]
[328008995,1716772242903,-500.0,0.00027397,4]
[328008996,1716772242912,-1206.93,0.00027397,4]
[328008997,1716772242921,-805.56,0.00027397,4]
[328008998,1716772242929,-162.11254605,0.00027397,4]
[328008999,1716772242942,-337.88745395,0.00027397,4]
[328009000,1716772242951,-500.0,0.00027397,4]
[328009001,1716772242960,-393.29,0.00027397,4]
[328009002,1716772242969,-895.02,0.00027397,4]
[328009003,1716772243152,-328.12361487,0.00027397,4]
[328009004,1716772243162,-500.0,0.00027397,4]
[328009005,1716772243172,-500.0,0.00027397,4]
[328009006,1716772243181,-500.0,0.00027397,4]
[328009007,1716772243190,-500.0,0.00027397,4]
[328009009,1716772243199,-500.0,0.00027397,4]
[328009011,1716772243208,-500.0,0.00027397,4]
[328009013,1716772243218,-500.0,0.00027397,4]
[328009014,1716772243226,-500.0,0.00027397,4]
[328009015,1716772243236,-650.5,0.00027397,4]
[328009016,1716772243245,-502.79475751,0.00027397,4]
[328009017,1716772243254,-500.0,0.00027397,4]
[328009018,1716772243263,-552.98,0.00027397,4]
[328009019,1716772243272,-500.0,0.00027397,4]
[328009020,1716772243281,-500.0,0.00027397,4]
[328009021,1716772243290,-891.85,0.00027397,4]
[328009022,1716772243299,-500.0,0.00027397,4]
[328009023,1716772243309,-500.0,0.00027397,4]
[328009024,1716772243318,-500.0,0.00027397,4]
[328009025,1716772243327,-500.0,0.00027397,4]
[328009026,1716772243336,-500.0,0.00027397,4]
[328009027,1716772243345,-500.0,0.00027397,4]
[328009028,1716772243355,-500.0,0.00027397,4]
[328009029,1716772243364,-500.0,0.00027397,4]
[328009030,1716772243373,-500.0,0.00027397,4]
[328009031,1716772243382,-500.0,0.00027397,4]
[328009032,1716772243391,-500.0,0.00027397,4]
[328009033,1716772243400,-500.0,0.00027397,4]
[328009034,1716772243409,-500.0,0.00027397,4]
[328009035,1716772243418,-500.0,0.00027397,4]
[328009036,1716772243427,-799.96,0.00027397,4]
[328009037,1716772243436,-500.0,0.00027397,4]
[328009038,1716772243451,-500.0,0.00027397,4]
[328009039,1716772243460,-296.62,0.00027397,4]
[328009040,1716772243469,-500.0,0.00027397,4]
[328009041,1716772243478,-500.0,0.00027397,4]
[328009042,1716772243487,-500.0,0.00027397,4]
[328009043,1716772243496,-500.0,0.00027397,4]
[328009044,1716772243506,-500.0,0.00027397,4]
[328009045,1716772243515,-740.97,0.00027397,4]
[328009046,1716772243527,-742.1,0.00027397,4]
[328009047,1716772243536,-500.0,0.00027397,4]
[328009048,1716772243546,-500.0,0.00027397,4]
[328009049,1716772243555,-500.0,0.00027397,4]
[328009050,1716772243564,-500.0,0.00027397,4]
[328009051,1716772243573,-500.0,0.00027397,4]
[328009052,1716772243582,-500.0,0.00027397,4]
[328009053,1716772243591,-500.0,0.00027397,4]
[328009054,1716772243600,-500.0,0.00027397,4]
[328009055,1716772243609,-1205.35,0.00027397,4]
[328009056,1716772243618,-500.0,0.00027397,4]
[328009057,1716772243628,-500.0,0.00027397,4]
[328009058,1716772243637,-500.0,0.00027397,4]
[328009059,1716772243646,-621.15,0.00027397,4]
[328009060,1716772243656,-500.0,0.00027397,4]
[328009061,1716772243665,-500.0,0.00027397,4]
[328009062,1716772243675,-500.0,0.00027397,4]
[328009063,1716772243684,-157.7637831,0.00027397,4]
[328009069,1716772244256,-342.2362169,0.00027397,4]
[328009072,1716772244325,-574.86,0.00027397,4]
[328009074,1716772244407,-500.0,0.00027397,4]
[328009075,1716772244464,-500.0,0.00027397,4]
[328009077,1716772244486,-500.0,0.00027397,4]
[328009079,1716772244497,-500.0,0.00027397,4]
[328009080,1716772244507,-500.0,0.00027397,4]
[328009081,1716772244517,-500.0,0.00027397,4]
[328009082,1716772244527,-500.0,0.00027397,4]
[328009083,1716772244537,-500.0,0.00027397,4]
[328009084,1716772244547,-500.0,0.00027397,4]
[328009085,1716772244557,-500.0,0.00027397,4]
[328009086,1716772244565,-500.0,0.00027397,4]
[328009087,1716772244575,-500.0,0.00027397,4]
[328009088,1716772244584,-500.0,0.00027397,4]
[328009089,1716772244593,-500.0,0.00027397,4]
[328009090,1716772244603,-694.41,0.00027397,4]
[328009091,1716772244612,-500.0,0.00027397,4]
[328009092,1716772244621,-500.0,0.00027397,4]
[328009093,1716772244630,-500.0,0.00027397,4]
[328009094,1716772244639,-500.0,0.00027397,4]
[328009095,1716772244648,-500.0,0.00027397,4]
[328009096,1716772244657,-1090.22,0.00027397,4]
[328009097,1716772244666,-1258.52,0.00027397,4]
[328009098,1716772244675,-500.0,0.00027397,4]
[328009099,1716772244684,-718.43,0.00027397,4]
[328009100,1716772244693,-579.28235315,0.00027397,4]
[328009101,1716772244703,-500.0,0.00027397,4]
[328009102,1716772244712,-500.0,0.00027397,4]
[328009103,1716772244721,-555.43,0.00027397,4]
[328009104,1716772244731,-666.56,0.00027397,4]
[328009105,1716772244740,-2526.08,0.00027397,4]
[328009106,1716772244750,-528.22445011,0.00027397,4]
[328009107,1716772244760,-1371.17,0.00027397,4]
[328009108,1716772244769,-500.0,0.00027397,4]
[328009109,1716772244779,-500.0,0.00027397,4]
[328009110,1716772244788,-500.0,0.00027397,4]
[328009111,1716772244798,-500.0,0.00027397,4]
[328009112,1716772244808,-500.0,0.00027397,4]
[328009113,1716772244817,-500.0,0.00027397,4]
[328009114,1716772244827,-704.08,0.00027397,4]
[328009115,1716772244836,-500.0,0.00027397,4]
[328009116,1716772244845,-500.0,0.00027397,4]
[328009117,1716772244855,-500.0,0.00027397,4]
[328009118,1716772244864,-500.0,0.00027397,4]
[328009119,1716772244873,-529.67,0.00027397,4]
[328009120,1716772244883,-500.0,0.00027397,4]
[328009121,1716772244893,-500.0,0.00027397,4]
[328009122,1716772244903,-500.0,0.00027397,4]
[328009123,1716772244912,-500.0,0.00027397,4]
[328009124,1716772244922,-500.0,0.00027397,4]
[328009125,1716772244932,-500.0,0.00027397,4]
[328009126,1716772244942,-500.0,0.00027397,4]
[328009127,1716772244952,-464.10690437,0.00027397,4]
[328009128,1716772244962,-500.0,0.00027397,4]
[328009129,1716772244972,-500.0,0.00027397,4]
[328009130,1716772244982,-503.27843616,0.00027397,4]
[328009131,1716772244992,-500.0,0.00027397,4]
[328009132,1716772245003,-510.84029969,0.00027397,4]
[328009133,1716772245012,-500.0,0.00027397,4]
[328009134,1716772245022,-500.0,0.00027397,4]
[328009135,1716772245032,-500.0,0.00027397,4]
[328009136,1716772245043,-500.0,0.00027397,4]
[328009137,1716772245052,-500.0,0.00027397,4]
[328009138,1716772245062,-648.7,0.00027397,4]
[328009139,1716772245072,-500.0,0.00027397,4]
[328009140,1716772245082,-503.24134299,0.00027397,4]
[328009141,1716772245092,-500.0,0.00027397,4]
[328009142,1716772245102,-500.0,0.00027397,4]
[328009143,1716772245112,-500.0,0.00027397,4]
[328009144,1716772245122,-500.0,0.00027397,4]
[328009145,1716772245132,-500.0,0.00027397,4]
[328009146,1716772245142,-500.0,0.00027397,4]
[328009147,1716772245152,-500.0,0.00027397,4]
[328009148,1716772245163,-500.0,0.00027397,4]
[328009149,1716772245173,-500.0,0.00027397,4]
[328009150,1716772245183,-509.2,0.00027397,4]
[328009151,1716772245193,-500.0,0.00027397,4]
[328009152,1716772245204,-509.10131862,0.00027397,4]
[328009153,1716772245214,-3574.0,0.000275,3]
[328009154,1716772245224,-194.8,0.0002762,2]
[328009155,1716772245235,-161.32,0.0002765,15]
[328009156,1716772245245,-1326.50175858,0.00027652,2]
[328009157,1716772245259,-2335.98145631,0.00027652,2]
[328009158,1716772245280,-704.92261432,0.00027652,2]
[328009159,1716772245292,-1557.28706139,0.00027652,2]
[328009160,1716772245302,-150.5,0.0002766,15]
[328009161,1716772245312,-500.0,0.0002767,4]
[328009162,1716772245322,-500.0,0.0002767,4]
[328009163,1716772245332,-157.81771575,0.00027671,4]
[328009164,1716772245342,-192.63985428,0.00027671,4]
[328009165,1716772245353,-500.0,0.00027671,4]
[328009166,1716772245363,-500.0,0.00027671,4]
[328009167,1716772245373,-500.0,0.00027671,4]
[328009168,1716772245383,-500.0,0.00027671,4]
[328009169,1716772245393,-500.0,0.00027671,4]
[328009170,1716772245403,-344.26568319,0.00027671,4]
[328009171,1716772245416,-155.73431681,0.00027671,4]
[328009172,1716772245426,-500.0,0.00027671,4]
[328009173,1716772245435,-500.0,0.00027671,4]
[328009174,1716772245450,-237.85060782,0.00027671,4]
[328009175,1716772245462,-262.14939218,0.00027671,4]
[328009176,1716772245472,-500.0,0.00027671,4]
[328009177,1716772245483,-500.0,0.00027671,4]
[328009178,1716772245492,-500.0,0.00027671,4]
[328009179,1716772245501,-488.26037697,0.00027671,4]
[328009180,1716772245514,-11.73962303,0.00027671,4]
[328009181,1716772245527,-364.51598877,0.00027671,4]
[328009182,1716772245540,-135.48401123,0.00027671,4]
[328009183,1716772245550,-500.0,0.00027671,4]
[328009184,1716772245560,-500.0,0.00027671,4]
[328009185,1716772245569,-500.0,0.00027671,4]
[328009186,1716772245579,-500.0,0.00027671,4]
[328009187,1716772245589,-155.60161258,0.00027671,4]
[328009188,1716772245601,-344.39838742,0.00027671,4]
[328009189,1716772245620,-483.99910084,0.00027671,4]
[328009190,1716772245637,-16.00089916,0.00027671,4]
[328009191,1716772245648,-500.0,0.00027671,4]
[328009192,1716772245658,-500.0,0.00027671,4]
[328009193,1716772245670,-500.0,0.00027671,4]
[328009194,1716772245681,-500.0,0.00027671,4]
[328009195,1716772245691,-500.0,0.00027671,4]
[328009196,1716772245702,-500.0,0.00027671,4]
[328009197,1716772245712,-48.60574653,0.00027671,4]
[328009198,1716772245726,-451.39425347,0.00027671,4]
[328009199,1716772245737,-453.5710707,0.00027671,4]
[328009200,1716772245750,-46.4289293,0.00027671,4]
[328009201,1716772245760,-311.03478483,0.00027671,4]
[328009202,1716772245773,-222.67722181,0.00027671,4]
[328009203,1716772245784,-654.05,0.00027671,4]
[328009204,1716772245794,-500.0,0.00027671,4]
[328009205,1716772245806,-5.22468376,0.00027671,4]
[328009206,1716772245928,-494.77531624,0.00027671,4]
[328009207,1716772245939,-359.93077781,0.00027671,4]
[328009208,1716772245951,-140.06922219,0.00027671,4]
[328009209,1716772245961,-500.0,0.00027671,4]
[328009210,1716772245971,-500.0,0.00027671,4]
[328009211,1716772245980,-500.0,0.00027671,4]
[328009212,1716772245990,-321.22647184,0.00027671,4]
[328009213,1716772246000,-500.0,0.00027671,4]
[328009214,1716772246010,-500.0,0.00027671,4]
[328009215,1716772246019,-348.13747023,0.00027671,4]
[328009216,1716772246029,-189.59518232,0.00027671,4]
[328009217,1716772246039,-500.0,0.00027671,4]
[328009218,1716772246048,-500.0,0.00027671,4]
[328009219,1716772246058,-500.0,0.00027671,4]
[328009220,1716772246068,-500.0,0.00027671,4]
[328009221,1716772246078,-500.0,0.00027671,4]
[328009222,1716772246089,-500.0,0.00027671,4]
[328009224,1716772246111,-500.0,0.00027671,4]
[328009226,1716772246134,-500.0,0.00027671,4]
[328009227,1716772246160,-500.0,0.00027671,4]
[328009228,1716772246183,-341.05170518,0.00027671,4]
[328009230,1716772246207,-500.0,0.00027671,4]
[328009231,1716772246232,-500.0,0.00027671,4]
[328009232,1716772246258,-54.58715678,0.00027671,4]
[328009233,1716772246271,-445.41284322,0.00027671,4]
[328009234,1716772246281,-500.0,0.00027671,4]
[328009235,1716772246291,-500.0,0.00027671,4]
[328009236,1716772246300,-500.0,0.00027671,4]
[328009237,1716772246310,-500.0,0.00027671,4]
[328009238,1716772246319,-500.0,0.00027671,4]
[328009239,1716772246328,-500.0,0.00027671,4]
[328009240,1716772246342,-500.0,0.00027671,4]
[328009241,1716772246351,-500.0,0.00027671,4]
[328009242,1716772246360,-386.93383256,0.00027671,4]
[328009243,1716772246373,-113.06616744,0.00027671,4]
[328009244,1716772246383,-500.0,0.00027671,4]
[328009245,1716772246392,-500.0,0.00027671,4]
[328009246,1716772246402,-500.0,0.00027671,4]
[328009247,1716772246412,-500.0,0.00027671,4]
[328009248,1716772246421,-500.0,0.00027671,4]
[328009249,1716772246432,-500.0,0.00027671,4]
[328009250,1716772246442,-500.0,0.00027671,4]
[328009251,1716772246454,-500.0,0.00027671,4]
[328009252,1716772246463,-500.0,0.00027671,4]
[328009253,1716772246473,-500.0,0.00027671,4]
[328009254,1716772246483,-500.0,0.00027671,4]
[328009255,1716772246493,-500.0,0.00027671,4]
[328009256,1716772246503,-500.0,0.00027671,4]
[328009257,1716772246513,-500.0,0.00027671,4]
[328009258,1716772246523,-271.8593984,0.00027671,4]
[328009259,1716772246537,-228.1406016,0.00027671,4]
[328009260,1716772246547,-500.0,0.00027671,4]
[328009261,1716772246557,-196.90283113,0.00027671,4]
[328009262,1716772246573,-303.09716887,0.00027671,4]
[328009263,1716772246583,-500.0,0.00027671,4]
[328009264,1716772246592,-123.94739576,0.00027671,4]
[328009265,1716772246604,-376.05260424,0.00027671,4]
[328009266,1716772246613,-500.0,0.00027671,4]
[328009267,1716772246623,-500.0,0.00027671,4]
[328009268,1716772246633,-500.0,0.00027671,4]
[328009269,1716772246643,-500.0,0.00027671,4]
[328009270,1716772246652,-635.15558872,0.00027671,4]
[328009271,1716772246662,-500.0,0.00027671,4]
[328009272,1716772246671,-500.0,0.00027671,4]
[328009273,1716772246682,-500.0,0.00027671,4]
[328009274,1716772246691,-500.0,0.00027671,4]
[328009275,1716772246701,-468.05974884,0.00027671,4]
[328009276,1716772246714,-31.94025116,0.00027671,4]
[328009277,1716772246723,-500.0,0.00027671,4]
[328009278,1716772246734,-500.0,0.00027671,4]
[328009279,1716772246743,-500.0,0.00027671,4]
[328009280,1716772246753,-500.0,0.00027671,4]
[328009281,1716772246763,-500.0,0.00027671,4]
[328009282,1716772246772,-525.52933858,0.00027671,4]
[328009283,1716772246782,-500.0,0.00027671,4]
[328009284,1716772246791,-92.23953878,0.00027671,4]
[328009285,1716772246804,-407.76046122,0.00027671,4]
[328009286,1716772246814,-500.0,0.00027671,4]
[328009287,1716772246824,-500.0,0.00027671,4]
[328009288,1716772246833,-500.0,0.00027671,4]
[328009289,1716772246843,-500.0,0.00027671,4]
[328009290,1716772246852,-500.0,0.00027671,4]
[328009291,1716772246861,-500.0,0.00027671,4]
[328009292,1716772246871,-866.14,0.00027671,4]
[328009293,1716772246881,-500.0,0.00027671,4]
[328009294,1716772246891,-500.0,0.00027671,4]
[328009295,1716772246901,-500.0,0.00027671,4]
[328009296,1716772246911,-500.0,0.00027671,4]
[328009297,1716772246921,-500.0,0.00027671,4]
[328009298,1716772246930,-500.0,0.00027671,4]
[328009299,1716772246941,-500.0,0.00027671,4]
[328009300,1716772246953,-500.0,0.00027671,4]
[328009301,1716772247181,-117.59817675,0.00027671,4]
[328009302,1716772247203,-308.68743525,0.00027671,4]
[328009303,1716772247215,-73.714388,0.00027671,4]
[328009304,1716772247224,-500.0,0.00027671,4]
[328009305,1716772247235,-500.0,0.00027671,4]
[328009306,1716772247244,-508.8582499,0.00027671,4]
[328009307,1716772247254,-500.0,0.00027671,4]
[328009308,1716772247264,-317.4273621,0.00027671,4]
[328009309,1716772247276,-182.5726379,0.00027671,4]
[328009310,1716772247285,-498.81806058,0.00027671,4]
[328009311,1716772247297,-1.18193942,0.00027671,4]
[328009312,1716772247306,-500.0,0.00027671,4]
[328009313,1716772247316,-214.46868395,0.00027671,4]
[328009314,1716772247325,-138.51425777,0.00027671,4]
[328009315,1716772247337,-361.48574223,0.00027671,4]
[328009316,1716772247347,-102.98912448,0.00027671,4]
[328009317,1716772247359,-426.13214279,0.00027671,4]
[328009318,1716772247369,-213.04033501,0.00027671,4]
[328009319,1716772247378,-493.21474745,0.00027671,4]
[328009320,1716772247390,-6.78525255,0.00027671,4]
[328009321,1716772247400,-441.65928745,0.00027671,4]
[328009322,1716772247411,-58.34071255,0.00027671,4]
[328009323,1716772247420,-273.29481128,0.00027671,4]
[328009324,1716772247432,-226.70518872,0.00027671,4]
[328009325,1716772247443,-619.21439582,0.00027671,4]
[328009326,1716772247456,-500.0,0.00027671,4]
[328009327,1716772247465,-500.0,0.00027671,4]
[328009328,1716772247475,-500.0,0.00027671,4]
[328009329,1716772247486,-110.17882728,0.00027671,4]
[328009330,1716772247498,-389.82117272,0.00027671,4]
[328009331,1716772247508,-500.0,0.00027671,4]
[328009332,1716772247519,-500.0,0.00027671,4]
[328009333,1716772247531,-276.39549197,0.00027671,4]
[328009334,1716772247545,-223.60450803,0.00027671,4]
[328009335,1716772247556,-500.0,0.00027671,4]
[328009336,1716772247565,-18.27659257,0.00027671,4]
[328009337,1716772247582,-481.72340743,0.00027671,4]
[328009338,1716772247592,-500.0,0.00027671,4]
[328009339,1716772247602,-787.13,0.00027671,4]
[328009340,1716772247612,-428.97929641,0.00027671,4]
[328009341,1716772248612,-18464.24495792,0.00027397,9]
[328009342,1716772248623,-274.15648893,0.00027397,9]
[328009343,1716772248635,-34618.11070455,0.00027397,9]
[328009344,1716772248650,-1145.08013776,0.00027397,9]
[328009345,1716772248662,-398.28391112,0.00027397,9]
[328009346,1716772248673,-4290.864085,0.00027397,9]
[328009347,1716772248685,-1453.85621766,0.00027397,9]
[328009348,1716772249334,-529.46371274,0.00027397,9]
[328009349,1716772249345,-687.73842544,0.00027397,9]
[328009350,1716772249357,-475.05770276,0.00027397,9]
[328009351,1716772249483,-10000.0,0.00027397,9]
[328009352,1716772249745,-82.14953727,0.00027397,9]
[328009353,1716772249756,-1376.18983,0.00027397,9]
[328009354,1716772249768,-659.09148858,0.00027397,9]
[328009355,1716772249780,-3319.35302739,0.00027397,9]
[328009356,1716772249791,-42007.2386893,0.00027397,9]
[328009357,1716772250332,-643.85957151,0.00027396,2]
[328009358,1716772250342,-5190.00947145,0.00027396,2]
[328009359,1716772250351,-417.68226304,0.00027397,9]
[328009360,1716772250362,-6068.89640534,0.00027397,9]
[328009361,1716772250373,-21307.22678556,0.00027397,9]
[328009362,1716772250384,-24002.61613511,0.00027397,9]
[328009363,1716772250607,-552.60606805,0.00027297,2]
[328009364,1716772250618,-1158.49793195,0.00027396,2]
[328009365,1716772250631,-2147.26668227,0.00027396,2]
[328009366,1716773138807,-205.10345642,0.00013962,2]
[328009367,1716773138831,-120.39654358,0.00013962,2]
[328009368,1716773234106,-204.86126628,0.00013959,2]
[328009369,1716773234126,-2257.74042731,0.00013959,2]
[328009370,1716773242111,-333.40065023,0.00013959,2]
[328009371,1716773368161,-155.0,0.00010471,2]
[328009372,1716773368180,-351.56658637,0.00010472,2]
[328009373,1716773368205,-38.01198318,0.00013959,2]
[328009375,1716773431811,-363.76455997,0.00013959,2]
[328009378,1716773431823,-2287.31388379,0.00013959,2]
[328009380,1716773431832,-155.0,0.00013959,2]
[328009381,1716773431841,-4808.54187417,0.0001396,2]
[328009383,1716773432050,-665.15049115,0.0001396,2]
[328009384,1716773432065,-611.8,0.0001396,2]
[328009385,1716773432077,-29317.04996325,0.0001396,2]
[328009386,1716773432087,-1065.00112556,0.00013972,2]
[328009387,1716773432096,-161.96,0.00013973,2]
[328009388,1716773432106,-151.89,0.00017808,2]
[328009389,1716773432115,-170.09,0.00018784,2]
[328009390,1716773432124,-734.60223445,0.00019,2]
[328009391,1716773432133,-198.292,0.00021501,2]
[328009392,1716773432142,-423.0,0.000232,5]
[328009393,1716773432151,-161.84,0.00023635,2]
[328009394,1716773432161,-250.0,0.00023725,2]
[328009395,1716773432170,-250.0,0.00023919,2]
[328009396,1716773432180,-171.21,0.00024588,2]
[328009397,1716773432189,-374.23,0.00024821,2]
[328009398,1716773432199,-250.0,0.00024827,2]
[328009399,1716773432208,-500.0,0.00025604,2]
[328009400,1716773432217,-200.0,0.00025604,2]
[328009401,1716773432226,-455.38,0.00025645,2]
[328009402,1716773432235,-200.0,0.00025658,2]
[328009403,1716773432244,-182.04,0.0002578,2]
[328009404,1716773432253,-161.84,0.00025899,2]
[328009405,1716773432263,-2500.0,0.00027296,2]
[328009406,1716773432272,-500.0,0.00027297,2]
[328009407,1716773432282,-18682.6619,0.00027297,2]
[328009408,1716773432291,-33122.1979,0.00027297,2]
[328009409,1716773432300,-300.0,0.00027297,2]
[328009410,1716773432312,-1000.0,0.00027297,2]
[328009411,1716773432321,-252.26594108,0.00027297,2]
[328009412,1716773432329,-759.16119,0.0002739,2]
[328009413,1716773432339,-1215.42910242,0.00027395,2]
[328009414,1716773432348,-2264.77875054,0.00027396,2]
[328009415,1716773432357,-500.0,0.00027396,2]
[328009416,1716773432367,-22204.66576862,0.00027396,2]
[328009417,1716773432378,-1366.50005002,0.00027396,2]
[328009418,1716773432391,-13931.4251857,0.00027396,2]
[328009420,1716773432399,-116278.90202907,0.00027396,2]
[328009422,1716773432409,-501.28211733,0.00027397,4]
[328009423,1716773432418,-500.0,0.00027397,4]
[328009424,1716773432427,-500.0,0.00027397,4]
[328009425,1716773432436,-500.0,0.00027397,4]
[328009426,1716773432446,-500.0,0.00027397,4]
[328009427,1716773432459,-500.0,0.00027397,4]
[328009428,1716773432468,-500.0,0.00027397,4]
[328009429,1716773432477,-500.0,0.00027397,4]
[328009430,1716773432487,-500.0,0.00027397,4]
[328009431,1716773432496,-500.0,0.00027397,4]
[328009432,1716773432505,-500.0,0.00027397,4]
[328009433,1716773432515,-500.0,0.00027397,4]
[328009434,1716773432524,-500.0,0.00027397,4]
[328009435,1716773432533,-500.0,0.00027397,4]
[328009436,1716773432542,-500.0,0.00027397,4]
[328009437,1716773432551,-500.0,0.00027397,4]
[328009438,1716773432562,-500.0,0.00027397,4]
[328009439,1716773432571,-540.4386496,0.00027397,4]
[328009440,1716773432580,-500.0,0.00027397,4]
[328009441,1716773432589,-695.36,0.00027397,4]
[328009442,1716773432598,-507.19131082,0.00027397,4]
[328009443,1716773432608,-500.0,0.00027397,4]
[328009444,1716773432617,-500.0,0.00027397,4]
[328009445,1716773432626,-500.0,0.00027397,4]
[328009446,1716773432635,-500.0,0.00027397,4]
[328009447,1716773432645,-500.0,0.00027397,4]
[328009448,1716773432654,-500.0,0.00027397,4]
[328009449,1716773432663,-500.0,0.00027397,4]
[328009450,1716773432673,-500.0,0.00027397,4]
[328009451,1716773432682,-500.0,0.00027397,4]
[328009452,1716773432691,-500.0,0.00027397,4]
[328009453,1716773432701,-500.0,0.00027397,4]
[328009454,1716773432711,-500.0,0.00027397,4]
[328009455,1716773432720,-500.0,0.00027397,4]
[328009456,1716773432728,-500.0,0.00027397,4]
[328009457,1716773432738,-500.0,0.00027397,4]
[328009458,1716773432747,-500.0,0.00027397,4]
[328009459,1716773432756,-500.0,0.00027397,4]
[328009460,1716773432765,-736.3,0.00027397,4]
[328009461,1716773432774,-550.53848555,0.00027397,4]
[328009462,1716773432783,-532.29414885,0.00027397,4]
[328009463,1716773432793,-500.0,0.00027397,4]
[328009464,1716773432802,-500.0,0.00027397,4]
[328009465,1716773432817,-500.0,0.00027397,4]
[328009466,1716773432826,-500.0,0.00027397,4]
[328009467,1716773432837,-500.0,0.00027397,4]
[328009468,1716773432846,-500.0,0.00027397,4]
[328009469,1716773432855,-500.0,0.00027397,4]
[328009470,1716773432864,-500.0,0.00027397,4]
[328009471,1716773432873,-500.0,0.00027397,4]
[328009472,1716773432883,-500.0,0.00027397,4]
[328009473,1716773432894,-500.0,0.00027397,4]
[328009474,1716773432903,-250.64626383,0.00027397,4]
[328009475,1716773432913,-500.0,0.00027397,4]
[328009476,1716773432922,-500.0,0.00027397,4]
[328009477,1716773432931,-500.0,0.00027397,4]
[328009478,1716773432940,-500.0,0.00027397,4]
[328009479,1716773432949,-500.0,0.00027397,4]
[328009480,1716773432958,-500.0,0.00027397,4]
[328009481,1716773432967,-500.0,0.00027397,4]
[328009482,1716773432976,-500.0,0.00027397,4]
[328009483,1716773432986,-500.0,0.00027397,4]
[328009484,1716773432995,-500.0,0.00027397,4]
[328009485,1716773433004,-500.0,0.00027397,4]
[328009486,1716773433013,-500.0,0.00027397,4]
[328009487,1716773433022,-500.0,0.00027397,4]
[328009488,1716773433031,-500.0,0.00027397,4]
[328009489,1716773433040,-500.0,0.00027397,4]
[328009490,1716773433049,-500.0,0.00027397,4]
[328009491,1716773433060,-500.0,0.00027397,4]
[328009492,1716773433069,-500.0,0.00027397,4]
[328009493,1716773433078,-500.0,0.00027397,4]